[Event "49th Rilton Cup 2019-20"]
[Site "Stockholm"]
[Date "2019.12.30"]
[Round "4.11"]
[White "Volkov, Sergey"]
[Black "Del Rey, Diego"]
[Result "1-0"]
[ECO "E42"]
[WhiteElo "2578"]
[BlackElo "2374"]
[Annotator "ChessBase"]
[PlyCount "113"]
[EventDate "2019.12.27"]
[EventType "swiss"]
[EventCountry "SWE"]
[SourceTitle "playchess.com"]
[Source "ChessBase"]
[SourceQuality "1"]
[TimeControl "40/5400+30:1800+30"]

1. d4 {[%emt 0:00:00]} Nf6 {[%emt 0:00:00]} 2. c4 {[%emt 0:00:00]} e6 {[%emt 0:00:00]} 3. Nc3 {[%emt 0:00:21]} Bb4 {[%emt 0:00:00]} 4. e3 {[%emt 0:00:22]} c5 {[%emt 0:00:00]} 5. Nge2 {[%emt 0:01:05]} cxd4 {[%emt 0:00:07]} 6. exd4 {[%emt 0:00:11]} O-O {[%emt 0:00:06]} 7. a3 {[%emt 0:01:26]} Be7 {[%emt 0:00:05]} 8. b4 {[%emt 0:01:43]} b6 {[%emt 0:07:54]} 9. d5 {[%emt 0:02:33]} exd5 {[%emt 0:00:10]} 10. cxd5 {[%emt 0:00:40]} Re8 {[%emt 0:01:43]} 11. g3 {[%emt 0:06:21]} Bb7 {[%emt 0:09:18]} 12. Bg2 {[%emt 0:01:34]} a5 {[%emt 0:00:47]} 13. b5 {[%emt 0:07:19]} Bc5 {[%emt 0:00:06]} 14. O-O {[%emt 0:02:35]} d6 {[%emt 0:02:30]} 15. Nd4 {[%emt 0:05:42]} Bxd4 {[%emt 0:00:32]} 16. Qxd4 {[%emt 0:00:06]} Nbd7 {[%emt 0:00:05]} 17. Bg5 {[%emt 0:01:33]} h6 {[%emt 0:00:34]} 18. Bf4 {[%emt 0:06:43]} Ne5 {[%emt 0:05:07]} 19. Na4 {[%emt 0:08:02]} Nfd7 {[%emt 0:00:41]} 20. Bxe5 {[%emt 0:00:41]} Rxe5 {[%emt 0:03:05]} 21. Rac1 {[%emt 0:00:29]} Rc8 {[%emt 0:09:01]} 22. Rc6 {[%emt 0:08:02]} Bxc6 {[%emt 0:00:16]} 23. dxc6 {[%emt 0:00:23]} Nc5 {[%emt 0:00:09]} 24. Nc3 {[%emt 0:00:48]} Ne6 {[%emt 0:01:14]} 25. Qd3 {[%emt 0:04:15]} Nc7 {[%emt 0:03:34]} 26. f4 {[%emt 0:05:31]} Rc5 {[%emt 0:04:15]} 27. Rb1 {[%emt 0:00:32]} d5 {[%emt 0:03:39]} 28. Na4 {[%emt 0:00:40]} Qd6 {[%emt 0:00:26]} 29. Nxc5 {[%emt 0:04:27]} Qxc5+ {[%emt 0:00:05]} 30. Kh1 {[%emt 0:00:19]} a4 {[%emt 0:01:56]} 31. Re1 {[%emt 0:06:37]} Rd8 {[%emt 0:01:54]} 32. Bf1 {[%emt 0:01:34]} d4 {[%emt 0:00:50]} 33. Re5 {[%emt 0:05:44]} Qd6 {[%emt 0:02:44]} 34. Bg2 {[%emt 0:06:02]} g6 {[%emt 0:07:15]} 35. h4 {[%emt 0:02:15]} h5 {[%emt 0:00:46]} 36. Kh2 {[%emt 0:01:41]} Kf8 {[%emt 0:01:33]} 37. Bf3 {[%emt 0:01:24]} Kg7 {[%emt 0:09:09]} 38. Kg2 {[%emt 0:00:54]} Ra8 {[%emt 0:02:00]} 39. Kf2 {[%emt 0:01:45]} Ra5 {[%emt 0:05:15]} 40. Be2 {[%emt 0:02:54]} Ra8 {[%emt 0:06:51]} 41. Bf3 {[%emt 0:32:35]} Rd8 {[%emt 0:35:08]} 42. Bg2 {[%emt 0:00:00]} Kf8 {[%emt 0:00:00]} 43. Bh3 {[%emt 0:00:00]} Re8 {[%emt 0:00:00]} 44. Rxe8+ {[%emt 0:00:00]} Kxe8 {[%emt 0:00:00]} 45. f5 {[%emt 0:00:00]} Kd8 {[%emt 0:00:00]} 46. fxg6 {[%emt 0:00:00]} fxg6 {[%emt 0:00:00]} 47. Bf1 {[%emt 0:00:00]} Ne8 {[%emt 0:00:00]} 48. Ke1 {[%emt 0:00:00]} Kc7 {[%emt 0:00:00]} 49. Kd1 {[%emt 0:00:00]} Qf6 {[%emt 0:00:00]} 50. Be2 {[%emt 0:00:00]} Nd6 {[%emt 0:00:00]} 51. Qc2 {[%emt 0:00:00]} Qf5 {[%emt 0:00:00]} 52. Qxf5 {[%emt 0:00:00]} Nxf5 {[%emt 0:00:00]} 53. Bd3 {[%emt 0:00:00]} Nd6 {[%emt 0:00:00]} 54. Ke2 {[%emt 0:00:00]} Kd8 {[%emt 0:00:00]} 55. Kf3 {[%emt 0:00:00]} Ke7 {[%emt 0:00:00]} 56. Kf4 {[%emt 0:00:00]} Kf6 {[%emt 0:00:00]} 57. c7 {[%emt 0:00:00]} 1-0

[Event "49th Rilton Cup 2019-20"]
[Site "Stockholm"]
[Date "2019.12.30"]
[Round "4.12"]
[White "Meshkovs, Nikita"]
[Black "Koykka, Pekka"]
[Result "1-0"]
[ECO "A06"]
[WhiteElo "2558"]
[BlackElo "2372"]
[Annotator "ChessBase"]
[PlyCount "95"]
[EventDate "2019.12.27"]
[EventType "swiss"]
[EventCountry "SWE"]
[SourceTitle "playchess.com"]
[Source "ChessBase"]
[SourceQuality "1"]
[TimeControl "40/5400+30:1800+30"]

1. Nf3 {[%emt 0:04:10]} d5 {[%emt 0:00:00]} 2. g3 {[%emt 0:00:21]} Nc6 {[%emt 0:00:05]} 3. d4 {[%emt 0:00:21]} Bg4 {[%emt 0:00:12]} 4. Bg2 {[%emt 0:01:47]} e6 {[%emt 0:00:12]} 5. Nbd2 {[%emt 0:02:12]} Nf6 {[%emt 0:02:07]} 6. O-O {[%emt 0:02:17]} Bd6 {[%emt 0:03:22]} 7. c4 {[%emt 0:03:04]} O-O {[%emt 0:02:24]} 8. b3 {[%emt 0:04:52]} Ne4 {[%emt 0:13:13]} 9. Bb2 {[%emt 0:02:45]} f5 {[%emt 0:02:49]} 10. Ne1 {[%emt 0:13:20]} Qg5 {[%emt 0:04:08]} 11. Nxe4 {[%emt 0:02:37]} fxe4 {[%emt 0:00:42]} 12. f3 {[%emt 0:01:05]} Bf5 {[%emt 0:12:57]} 13. Qc1 {[%emt 0:03:39]} Qg6 {[%emt 0:19:43]} 14. Qe3 {[%emt 0:04:12]} h5 {[%emt 0:01:49]} 15. fxe4 {[%emt 0:15:25]} dxe4 {[%emt 0:00:30]} 16. Nc2 {[%emt 0:00:17]} Be7 {[%emt 0:09:43]} 17. Ba3 {[%emt 0:03:29]} Bg5 {[%emt 0:04:31]} 18. Qc3 {[%emt 0:00:09]} Rfd8 {[%emt 0:01:16]} 19. Rad1 {[%emt 0:00:59]} Rd7 {[%emt 0:02:04]} 20. Ne3 {[%emt 0:17:00]} Rad8 {[%emt 0:00:56]} 21. Nxf5 {[%emt 0:00:09]} exf5 {[%emt 0:00:13]} 22. d5 {[%emt 0:00:26]} Bf6 {[%emt 0:02:15]} 23. Qe3 {[%emt 0:00:10]} Ne5 {[%emt 0:01:12]} 24. Bh3 {[%emt 0:05:00]} Ng4 {[%emt 0:01:33]} 25. Qf4 {[%emt 0:01:00]} Rf7 {[%emt 0:00:54]} 26. Bxg4 {[%emt 0:00:47]} hxg4 {[%emt 0:01:09]} 27. Kh1 {[%emt 0:00:18]} Bg5 {[%emt 0:00:56]} 28. Qe5 {[%emt 0:00:01]} Qa6 {[%emt 0:02:05]} 29. Bc1 {[%emt 0:04:18]} Bf6 {[%emt 0:03:26]} 30. Qxf5 {[%emt 0:01:20]} Qxa2 {[%emt 0:00:09]} 31. Qxg4 {[%emt 0:01:01]} Qxb3 {[%emt 0:02:26]} 32. Qxe4 {[%emt 0:00:01]} b5 {[%emt 0:02:27]} 33. cxb5 {[%emt 0:01:12]} Qxb5 {[%emt 0:01:19]} 34. Rd3 {[%emt 0:02:14]} Re7 {[%emt 0:01:32]} 35. Qf3 {[%emt 0:00:49]} Rde8 {[%emt 0:01:04]} 36. Re1 {[%emt 0:00:36]} Re4 {[%emt 0:01:57]} 37. Bf4 {[%emt 0:00:23]} Qa5 {[%emt 0:00:21]} 38. Bd2 {[%emt 0:01:26]} Qa2 {[%emt 0:00:33]} 39. g4 {[%emt 0:00:28]} Qc4 {[%emt 0:00:41]} 40. g5 {[%emt 0:00:40]} Be7 {[%emt 0:00:19]} 41. Rc1 {[%emt 0:16:45]} Qa4 {[%emt 0:01:34]} 42. g6 {[%emt 0:03:08]} Bf6 {[%emt 0:06:33]} 43. Re3 {[%emt 0:00:36]} Rh4 {[%emt 0:13:13]} 44. Rxe8+ {[%emt 0:10:26]} Qxe8 {[%emt 0:00:03]} 45. d6 {[%emt 0:01:04]} cxd6 {[%emt 0:00:53]} 46. Qf5 {[%emt 0:00:31]} Bd8 {[%emt 0:10:37]} 47. Rc8 {[%emt 0:00:11]} Rd4 {[%emt 0:00:20]} 48. Qe6+ {[%emt 0:00:33]} 1-0

[Event "49th Rilton Cup 2019-20"]
[Site "Stockholm"]
[Date "2019.12.30"]
[Round "4.13"]
[White "Kaasen, Tor Fredrik"]
[Black "Schoppen, Casper"]
[Result "1-0"]
[ECO "B90"]
[WhiteElo "2385"]
[BlackElo "2507"]
[Annotator "ChessBase"]
[PlyCount "69"]
[EventDate "2019.12.27"]
[EventType "swiss"]
[EventCountry "SWE"]
[SourceTitle "playchess.com"]
[Source "ChessBase"]
[SourceQuality "1"]
[TimeControl "40/5400+30:1800+30"]

1. e4 {[%emt 0:10:05]} c5 {[%emt 0:00:00]} 2. Nf3 {[%emt 0:00:28]} d6 {[%emt 0:00:07]} 3. d4 {[%emt 0:01:19]} cxd4 {[%emt 0:00:05]} 4. Nxd4 {[%emt 0:00:07]} Nf6 {[%emt 0:00:05]} 5. Nc3 {[%emt 0:00:04]} a6 {[%emt 0:00:07]} 6. h3 {[%emt 0:01:12]} e6 {[%emt 0:04:12]} 7. g4 {[%emt 0:01:24]} h6 {[%emt 0:00:12]} 8. Bg2 {[%emt 0:00:40]} Nc6 {[%emt 0:04:33]} 9. Nxc6 {[%emt 0:06:26]} bxc6 {[%emt 0:00:06]} 10. e5 {[%emt 0:00:15]} dxe5 {[%emt 0:10:25]} 11. Qxd8+ {[%emt 0:11:33]} Kxd8 {[%emt 0:00:05]} 12. Bxc6 {[%emt 0:01:05]} Rb8 {[%emt 0:00:20]} 13. b3 {[%emt 0:06:41]} Kc7 {[%emt 0:03:54]} 14. Bg2 {[%emt 0:01:10]} Bb4 {[%emt 0:02:55]} 15. Bb2 {[%emt 0:03:43]} Rd8 {[%emt 0:28:00]} 16. a3 {[%emt 0:01:26]} Bc5 {[%emt 0:00:25]} 17. Ne2 {[%emt 0:03:03]} Nd7 {[%emt 0:00:26]} 18. f4 {[%emt 0:02:44]} exf4 {[%emt 0:02:15]} 19. Nxf4 {[%emt 0:06:27]} Nf6 {[%emt 0:06:45]} 20. Be5+ {[%emt 0:04:59]} Bd6 {[%emt 0:00:13]} 21. Nd3 {[%emt 0:00:24]} Ne8 {[%emt 0:02:48]} 22. Bc3 {[%emt 0:01:56]} Kd7 {[%emt 0:06:17]} 23. Ne5+ {[%emt 0:05:11]} Bxe5 {[%emt 0:00:09]} 24. Bxe5 {[%emt 0:00:12]} Rb5 {[%emt 0:00:16]} 25. O-O-O+ {[%emt 0:02:04]} Ke7 {[%emt 0:00:08]} 26. Rxd8 {[%emt 0:00:41]} Kxd8 {[%emt 0:00:04]} 27. Rd1+ {[%emt 0:00:25]} Ke7 {[%emt 0:00:21]} 28. Bc3 {[%emt 0:00:34]} f6 {[%emt 0:06:41]} 29. Bb4+ {[%emt 0:02:25]} Rxb4 {[%emt 0:00:06]} 30. axb4 {[%emt 0:00:04]} g5 {[%emt 0:00:19]} 31. c4 {[%emt 0:00:58]} Nd6 {[%emt 0:00:39]} 32. Bc6 {[%emt 0:00:36]} f5 {[%emt 0:00:43]} 33. b5 {[%emt 0:03:33]} axb5 {[%emt 0:00:03]} 34. c5 {[%emt 0:00:29]} Nf7 {[%emt 0:00:43]} 35. Bxb5 {[%emt 0:00:20]} 1-0

[Event "49th Rilton Cup 2019-20"]
[Site "Stockholm"]
[Date "2019.12.30"]
[Round "4.14"]
[White "Santarius, Erik"]
[Black "Valsecchi, Alessio"]
[Result "1-0"]
[ECO "D38"]
[WhiteElo "2382"]
[BlackElo "2503"]
[Annotator "RC"]
[PlyCount "65"]
[EventDate "2019.12.27"]
[EventType "swiss"]
[EventCountry "SWE"]
[SourceTitle "playchess.com"]
[Source "ChessBase"]
[SourceQuality "1"]
[TimeControl "40/5400+30:1800+30"]

1. d4 {[%emt 0:00:00]} d5 {[%emt 0:00:00]} 2. Nf3 {[%emt 0:00:00]} Nf6 {[%emt 0:00:00]} 3. c4 {[%emt 0:00:01]} e6 {[%emt 0:00:08]} 4. Nc3 {[%emt 0:00:20]} Bb4 {[%emt 0:01:46]} 5. Qa4+ {[%emt 0:00:37]} Nc6 {[%emt 0:00:07]} 6. Bg5 {[%emt 0:00:34]} h6 {[%emt 0:00:15]} 7. Bxf6 {[%emt 0:00:54]} Qxf6 {[%emt 0:00:08]} 8. cxd5 {[%emt 0:00:08]} exd5 {[%emt 0:00:29]} 9. e3 {[%emt 0:00:13]} O-O {[%emt 0:01:14]} 10. Rc1 {[%emt 0:00:39]} Qg6 {[%emt 0:09:51]} 11. Nh4 {[%emt 0:00:36]} Qf6 {[%emt 0:03:57]} 12. Nf3 {[%emt 0:00:12]} Qg6 {[%emt 0:00:52]} 13. Nh4 {[%emt 0:02:00]} Qg4 {[%emt 0:14:30]} 14. Nf3 {[%emt 0:00:26]} Be6 {[%emt 0:08:09]} 15. h3 {[%emt 0:02:59]} Qg6 {[%emt 0:00:27]} 16. Qd1 {[%emt 0:00:30]} a6 {[%emt 0:04:02]} 17. Bd3 {[%emt 0:00:34]} Qf6 {[%emt 0:05:55]} 18. O-O {[%emt 0:00:56]} Rfe8 {[%emt 0:01:12]} 19. a3 {[%emt 0:05:52]} Bd6 {[%emt 0:02:32]} 20. Na4 {[%emt 0:05:48]} Rad8 {[%emt 0:14:17]} 21. Nc5 {[%emt 0:06:21]} Bc8 {[%emt 0:00:29]} 22. b4 {[%emt 0:00:32]} g5 {[%emt 0:04:41]} 23. Nh2 {[%emt 0:02:40]} a5 {[%emt 0:03:28]} 24. Ng4 {[%emt 0:05:42]} Qg7 {[%emt 0:01:11]} 25. Qf3 {[%emt 0:01:36]} f5 {[%emt 0:06:47]} 26. Bxf5 {[%emt 0:07:30]} Rf8 {[%emt 0:00:08]} 27. Be6+ {[%emt 0:04:03]} Kh8 {[%emt 0:01:52]} 28. Qd1 {[%emt 0:01:20]} h5 {[%emt 0:05:48]} 29. Bxc8 {[%emt 0:01:06]} Rxc8 {[%emt 0:00:11]} 30. Nxb7 {[%emt 0:03:16]} hxg4 {[%emt 0:03:33]} 31. Rxc6 {[%emt 0:00:27]} g3 {[%emt 0:03:58]} 32. Nxd6 {[%emt 0:00:56]} gxf2+ {[%emt 0:00:23]} 33. Rxf2 {[%emt 0:00:26]} 1-0

[Event "49th Rilton Cup 2019-20"]
[Site "Stockholm"]
[Date "2019.12.30"]
[Round "4.16"]
[White "Oratovsky, Michael"]
[Black "Ippolito, Dean"]
[Result "1-0"]
[ECO "C50"]
[WhiteElo "2423"]
[BlackElo "2356"]
[Annotator "NA"]
[PlyCount "95"]
[EventDate "2019.12.27"]
[EventType "swiss"]
[EventCountry "SWE"]
[SourceTitle "playchess.com"]
[Source "ChessBase"]
[SourceQuality "1"]
[TimeControl "40/5400+30:1800+30"]

1. e4 {[%emt 0:00:00]} e5 {[%emt 0:00:00]} 2. Bc4 {[%emt 0:01:17]} Nf6 {[%emt 0:00:00]} 3. d3 {[%emt 0:00:07]} Nc6 {[%emt 0:00:15]} 4. Nf3 {[%emt 0:00:26]} Bc5 {[%emt 0:00:47]} 5. c3 {[%emt 0:01:25]} a6 {[%emt 0:01:10]} 6. Nbd2 {[%emt 0:00:49]} O-O {[%emt 0:02:28]} 7. Bb3 {[%emt 0:02:50]} Ba7 {[%emt 0:01:57]} 8. h3 {[%emt 0:05:11]} d6 {[%emt 0:00:46]} 9. Nf1 {[%emt 0:12:30]} d5 {[%emt 0:01:30]} 10. exd5 {[%emt 0:05:56]} Nxd5 {[%emt 0:00:45]} 11. Ng3 {[%emt 0:00:28]} Be6 {[%emt 0:01:31]} 12. O-O {[%emt 0:20:56]} f6 {[%emt 0:00:49]} 13. Be3 {[%emt 0:18:31]} Bxe3 {[%emt 0:41:06]} 14. fxe3 {[%emt 0:00:15]} Kh8 {[%emt 0:00:07]} 15. Qd2 {[%emt 0:10:27]} Qe8 {[%emt 0:04:58]} 16. d4 {[%emt 0:04:47]} Qg6 {[%emt 0:17:52]} 17. Qf2 {[%emt 0:04:28]} exd4 {[%emt 0:01:55]} 18. exd4 {[%emt 0:01:09]} Rae8 {[%emt 0:04:18]} 19. Nh4 {[%emt 0:05:28]} Qg5 {[%emt 0:10:55]} 20. Ne4 {[%emt 0:00:29]} Qh5 {[%emt 0:04:35]} 21. Nc5 {[%emt 0:00:22]} Bc8 {[%emt 0:00:41]} 22. g4 {[%emt 0:01:10]} Bxg4 {[%emt 0:01:09]} 23. hxg4 {[%emt 0:01:26]} Qxg4+ {[%emt 0:00:02]} 24. Qg2 {[%emt 0:00:34]} Qxh4 {[%emt 0:01:26]} 25. Bxd5 {[%emt 0:00:13]} f5 {[%emt 0:00:30]} 26. Ne6 {[%emt 0:00:45]} Rf7 {[%emt 0:00:52]} 27. Ng5 {[%emt 0:00:54]} Rf6 {[%emt 0:00:27]} 28. Nf3 {[%emt 0:00:33]} Qh5 {[%emt 0:00:29]} 29. Rae1 {[%emt 0:00:16]} Rd8 {[%emt 0:00:03]} 30. Bxc6 Rg6 {[%emt 0:00:03]} 31. Ne5 {[%emt 0:01:05]} Rxg2+ {[%emt 0:00:03]} 32. Bxg2 {[%emt 0:00:06]} c6 {[%emt 0:00:41]} 33. Re3 {[%emt 0:00:44]} Kg8 {[%emt 0:00:56]} 34. Ref3 {[%emt 0:00:43]} g6 {[%emt 0:01:16]} 35. R1f2 {[%emt 0:00:27]} Qg5 {[%emt 0:00:28]} 36. Re2 {[%emt 0:00:30]} h5 {[%emt 0:00:37]} 37. Nd3 {[%emt 0:00:16]} h4 {[%emt 0:00:13]} 38. Kf2 {[%emt 0:00:16]} Qf6 {[%emt 0:00:31]} 39. Bh3 {[%emt 0:00:42]} Qd6 {[%emt 0:00:32]} 40. Re5 {[%emt 0:00:29]} Qf6 {[%emt 0:00:40]} 41. Nf4 {[%emt 0:30:47]} Qf7 {[%emt 0:01:19]} 42. Re6 {[%emt 0:00:00]} Re8 {[%emt 0:08:41]} 43. Rxg6+ {[%emt 0:00:00]} Kh7 {[%emt 0:04:12]} 44. Rg5 {[%emt 0:00:00]} Qxa2 {[%emt 0:01:18]} 45. Bxf5+ {[%emt 0:00:00]} Kh8 {[%emt 0:00:08]} 46. Ng6+ {[%emt 0:00:00]} Kg7 {[%emt 0:01:13]} 47. Ne5+ {[%emt 0:00:00]} Kh8 {[%emt 0:00:04]} 48. Bc2 {[%emt 0:00:00]} 1-0

[Event "49th Rilton Cup 2019-20"]
[Site "Stockholm"]
[Date "2019.12.30"]
[Round "4.17"]
[White "Hobber, Anders"]
[Black "Savanovic, Aleksandar"]
[Result "1-0"]
[ECO "D00"]
[WhiteElo "2357"]
[BlackElo "2420"]
[Annotator "NA"]
[PlyCount "95"]
[EventDate "2019.12.27"]
[EventType "swiss"]
[EventCountry "SWE"]
[SourceTitle "playchess.com"]
[Source "ChessBase"]
[SourceQuality "1"]
[TimeControl "40/5400+30:1800+30"]

1. d4 {[%emt 0:02:06]} d5 {[%emt 0:00:00]} 2. Bf4 Nf6 3. e3 {[%emt 0:02:29]} c5 {[%emt 0:00:51]} 4. c3 {[%emt 0:00:10]} Nc6 {[%emt 0:00:06]} 5. Nd2 {[%emt 0:00:14]} cxd4 {[%emt 0:00:27]} 6. exd4 {[%emt 0:00:11]} Bf5 {[%emt 0:00:12]} 7. Ngf3 {[%emt 0:02:37]} e6 {[%emt 0:00:38]} 8. Be2 {[%emt 0:02:03]} Bd6 {[%emt 0:04:10]} 9. Bxd6 {[%emt 0:00:36]} Qxd6 {[%emt 0:00:12]} 10. O-O {[%emt 0:08:54]} O-O {[%emt 0:00:16]} 11. Re1 {[%emt 0:05:48]} Rfc8 {[%emt 0:06:37]} 12. Nb3 {[%emt 0:06:59]} Rab8 {[%emt 0:07:02]} 13. a4 {[%emt 0:11:39]} Nd7 {[%emt 0:12:27]} 14. Bd3 {[%emt 0:05:59]} Ne7 {[%emt 0:01:42]} 15. Nc1 {[%emt 0:09:30]} a5 {[%emt 0:08:57]} 16. Bb5 {[%emt 0:09:54]} Nc6 {[%emt 0:01:19]} 17. h3 {[%emt 0:01:09]} Nb6 {[%emt 0:05:02]} 18. Nb3 {[%emt 0:08:29]} Ra8 {[%emt 0:08:06]} 19. Nc5 {[%emt 0:02:05]} Rc7 {[%emt 0:11:16]} 20. Nh4 {[%emt 0:00:59]} Bg6 {[%emt 0:01:52]} 21. Nxg6 {[%emt 0:00:17]} hxg6 {[%emt 0:00:11]} 22. Qb3 {[%emt 0:03:47]} Nd7 {[%emt 0:03:44]} 23. Nxd7 {[%emt 0:00:29]} Rxd7 {[%emt 0:00:15]} 24. Re3 {[%emt 0:01:13]} Rc7 {[%emt 0:01:12]} 25. Rae1 {[%emt 0:01:05]} Ne7 {[%emt 0:00:59]} 26. Bd3 {[%emt 0:00:14]} Nf5 {[%emt 0:01:19]} 27. Re5 {[%emt 0:00:34]} Qd8 {[%emt 0:01:10]} 28. g3 {[%emt 0:03:30]} Nd6 {[%emt 0:01:38]} 29. h4 {[%emt 0:01:09]} Nc4 {[%emt 0:01:01]} 30. Bxc4 {[%emt 0:03:08]} Rxc4 {[%emt 0:00:07]} 31. Qd1 {[%emt 0:02:22]} Rac8 {[%emt 0:02:16]} 32. Qg4 {[%emt 0:02:02]} Qf6 {[%emt 0:01:48]} 33. R1e3 {[%emt 0:00:55]} Rxa4 {[%emt 0:01:01]} 34. Rxd5 {[%emt 0:00:39]} Rd8 {[%emt 0:04:01]} 35. Rb5 {[%emt 0:00:39]} Rd7 {[%emt 0:01:06]} 36. Ree5 {[%emt 0:01:21]} b6 {[%emt 0:00:25]} 37. Qe4 {[%emt 0:00:18]} Rd6 {[%emt 0:00:55]} 38. Qa8+ {[%emt 0:00:59]} Kh7 {[%emt 0:00:08]} 39. h5 {[%emt 0:01:05]} Ra1+ {[%emt 0:02:05]} 40. Kg2 {[%emt 0:00:15]} Rd1 {[%emt 0:01:15]} 41. hxg6+ {[%emt 0:07:10]} fxg6 {[%emt 0:00:00]} 42. Qe8 {[%emt 0:03:04]} Rd5 {[%emt 0:00:00]} 43. Rbxd5 {[%emt 0:04:04]} exd5 {[%emt 0:00:07]} 44. Qc8 {[%emt 0:04:07]} g5 {[%emt 0:02:42]} 45. Qh3+ {[%emt 0:05:50]} Qh6 {[%emt 0:00:07]} 46. Qf5+ {[%emt 0:00:48]} Qg6 {[%emt 0:00:12]} 47. Qxg6+ {[%emt 0:00:06]} Kxg6 {[%emt 0:00:08]} 48. Rxd5 {[%emt 0:00:04]} 1-0

[Event "49th Rilton Cup 2019-20"]
[Site "Stockholm"]
[Date "2019.12.30"]
[Round "4.18"]
[White "Rathanvel, V S"]
[Black "Dragicevic, Drazen"]
[Result "1-0"]
[ECO "B15"]
[WhiteElo "2411"]
[BlackElo "2294"]
[Annotator "NA"]
[PlyCount "93"]
[EventDate "2019.12.27"]
[EventType "swiss"]
[EventCountry "SWE"]
[SourceTitle "playchess.com"]
[Source "ChessBase"]
[SourceQuality "1"]
[TimeControl "40/5400+30:1800+30"]

1. e4 {[%emt 0:00:00]} c6 {[%emt 0:00:00]} 2. Nc3 {[%emt 0:03:20]} d5 {[%emt 0:01:27]} 3. d4 {[%emt 0:01:49]} dxe4 {[%emt 0:02:03]} 4. Nxe4 {[%emt 0:00:03]} Nf6 {[%emt 0:00:34]} 5. Nxf6+ {[%emt 0:00:08]} exf6 {[%emt 0:00:08]} 6. Nf3 {[%emt 0:00:17]} Bd6 {[%emt 0:03:44]} 7. Be2 {[%emt 0:04:41]} O-O {[%emt 0:04:02]} 8. O-O {[%emt 0:00:27]} Qc7 {[%emt 0:04:46]} 9. h3 {[%emt 0:19:31]} Rd8 {[%emt 0:02:27]} 10. c3 {[%emt 0:01:15]} Nd7 {[%emt 0:10:56]} 11. Qc2 {[%emt 0:03:49]} Nf8 {[%emt 0:01:27]} 12. Be3 {[%emt 0:09:51]} Be6 {[%emt 0:09:52]} 13. Rfe1 {[%emt 0:05:07]} Qd7 {[%emt 0:07:50]} 14. Bf1 {[%emt 0:02:35]} Rac8 {[%emt 0:01:13]} 15. Rad1 {[%emt 0:01:28]} Bb8 {[%emt 0:02:07]} 16. c4 {[%emt 0:08:42]} h5 {[%emt 0:04:12]} 17. Bc1 {[%emt 0:05:53]} Qd6 {[%emt 0:13:59]} 18. Re3 {[%emt 0:13:21]} Ng6 {[%emt 0:12:28]} 19. c5 {[%emt 0:03:06]} Qd7 {[%emt 0:01:39]} 20. Rxe6 {[%emt 0:00:15]} Qxe6 {[%emt 0:00:49]} 21. Bc4 {[%emt 0:00:06]} Rd5 {[%emt 0:00:50]} 22. Qb3 {[%emt 0:00:08]} Qd7 {[%emt 0:06:18]} 23. Bxd5 {[%emt 0:00:08]} cxd5 {[%emt 0:00:03]} 24. Re1 {[%emt 0:00:30]} Ne7 {[%emt 0:02:49]} 25. g3 {[%emt 0:08:10]} g5 {[%emt 0:02:28]} 26. h4 {[%emt 0:02:23]} g4 {[%emt 0:02:09]} 27. Nh2 {[%emt 0:00:47]} f5 {[%emt 0:00:59]} 28. Qe3 {[%emt 0:01:10]} Ng6 {[%emt 0:00:53]} 29. Qg5 {[%emt 0:00:43]} Re8 {[%emt 0:01:35]} 30. Rxe8+ {[%emt 0:00:39]} Qxe8 {[%emt 0:00:02]} 31. Nf1 {[%emt 0:00:03]} Bc7 {[%emt 0:01:07]} 32. Qxf5 {[%emt 0:00:37]} Kg7 {[%emt 0:00:29]} 33. Qxd5 {[%emt 0:00:51]} Qe1 {[%emt 0:00:27]} 34. Bd2 {[%emt 0:00:24]} Qe2 {[%emt 0:00:23]} 35. Qxh5 {[%emt 0:00:29]} Qe4 {[%emt 0:00:39]} 36. Bh6+ {[%emt 0:01:37]} Kg8 {[%emt 0:00:28]} 37. Bd2 {[%emt 0:02:50]} Qxd4 {[%emt 0:00:33]} 38. Bc3 {[%emt 0:00:09]} Qe4 {[%emt 0:00:02]} 39. Qg5 {[%emt 0:00:43]} Kf8 {[%emt 0:00:55]} 40. h5 {[%emt 0:00:13]} Ne5 {[%emt 0:00:33]} 41. Bxe5 {[%emt 0:31:37]} Bxe5 {[%emt 0:00:32]} 42. h6 {[%emt 0:00:00]} Bxb2 {[%emt 0:04:49]} 43. Ne3 {[%emt 0:00:00]} Bc1 {[%emt 0:14:01]} 44. Qd8+ {[%emt 0:00:00]} Qe8 {[%emt 0:00:10]} 45. Qd4 {[%emt 0:00:00]} Bxe3 {[%emt 0:02:40]} 46. fxe3 {[%emt 0:00:00]} Qb5 {[%emt 0:00:49]} 47. Qd8+ {[%emt 0:00:00]} 1-0

[Event "49th Rilton Cup 2019-20"]
[Site "Stockholm"]
[Date "2019.12.30"]
[Round "4.19"]
[White "Abdrlauf, Elham"]
[Black "Haug, Johannes"]
[Result "1/2-1/2"]
[ECO "A06"]
[WhiteElo "2328"]
[BlackElo "2407"]
[Annotator "NA"]
[PlyCount "70"]
[EventDate "2019.12.27"]
[EventType "swiss"]
[EventCountry "SWE"]
[SourceTitle "playchess.com"]
[Source "ChessBase"]
[SourceQuality "1"]
[TimeControl "40/5400+30:1800+30"]

1. Nf3 {[%emt 0:00:00]} d5 {[%emt 0:02:13]} 2. e3 {[%emt 0:00:00]} Nf6 {[%emt 0:00:51]} 3. c4 {[%emt 0:00:00]} e6 {[%emt 0:00:04]} 4. b3 {[%emt 0:00:00]} b6 {[%emt 0:01:27]} 5. Nc3 {[%emt 0:00:00]} g6 {[%emt 0:03:58]} 6. d4 {[%emt 0:06:53]} Bg7 {[%emt 0:00:49]} 7. Ba3 {[%emt 0:00:27]} Bb7 {[%emt 0:09:52]} 8. Rc1 {[%emt 0:09:15]} a6 {[%emt 0:06:32]} 9. Be2 {[%emt 0:07:25]} Nbd7 {[%emt 0:03:33]} 10. O-O {[%emt 0:00:46]} Bf8 {[%emt 0:02:33]} 11. Bxf8 {[%emt 0:01:29]} Kxf8 {[%emt 0:00:04]} 12. Ne5 {[%emt 0:12:55]} Kg7 {[%emt 0:12:26]} 13. Qc2 {[%emt 0:09:39]} Rc8 {[%emt 0:05:54]} 14. Rfd1 {[%emt 0:02:16]} Qe7 {[%emt 0:05:24]} 15. Nxd7 {[%emt 0:03:44]} Qxd7 {[%emt 0:08:05]} 16. Bf3 {[%emt 0:00:08]} Rhd8 {[%emt 0:12:01]} 17. b4 {[%emt 0:06:51]} Bc6 {[%emt 0:05:06]} 18. c5 {[%emt 0:00:50]} a5 {[%emt 0:01:30]} 19. a3 {[%emt 0:04:06]} axb4 {[%emt 0:03:03]} 20. axb4 {[%emt 0:00:07]} bxc5 {[%emt 0:00:02]} 21. dxc5 {[%emt 0:04:00]} Rb8 {[%emt 0:01:24]} 22. Rb1 {[%emt 0:00:07]} e5 {[%emt 0:00:57]} 23. b5 {[%emt 0:00:13]} Rxb5 {[%emt 0:03:36]} 24. Nxb5 {[%emt 0:00:29]} Bxb5 {[%emt 0:00:05]} 25. Qc3 {[%emt 0:07:42]} d4 {[%emt 0:03:06]} 26. exd4 {[%emt 0:00:48]} e4 {[%emt 0:00:53]} 27. c6 {[%emt 0:11:05]} Qf5 {[%emt 0:01:37]} 28. g4 {[%emt 0:00:05]} Qg5 {[%emt 0:00:47]} 29. Qe3 {[%emt 0:12:29]} Qxe3 {[%emt 0:01:09]} 30. fxe3 {[%emt 0:00:03]} Ba4 {[%emt 0:00:02]} 31. Be2 {[%emt 0:01:07]} Bxd1 {[%emt 0:00:09]} 32. Bxd1 {[%emt 0:00:27]} Nd5 {[%emt 0:00:01]} 33. Rb7 {[%emt 0:00:32]} Nxe3 {[%emt 0:05:41]} 34. Bb3 Nd5 35. Bd1 Ne3 1/2-1/2